fUST/lending_fUST_20250225
["ID","MTS","AMOUNT","RATE_DAILY","PERIOD"]
[354412204,1740477054027,-177.655037,0.00273973,120]
[354412205,1740477054036,-177.655043,0.00273973,120]
[354412206,1740477054047,-269.119979,0.00273973,120]
[354412207,1740477054056,-151.0,0.00273973,120]
[354412208,1740477054065,-151.0,0.00273973,120]
[354412209,1740477054074,-151.0,0.00273973,120]
[354412210,1740477054083,-151.0,0.00273973,120]
[354412211,1740477054093,-151.0,0.00273973,120]
[354412212,1740477054102,-151.0,0.00273973,120]
[354412213,1740477054112,-151.0,0.00273973,120]
[354412214,1740477054121,-151.0,0.00273973,120]
[354412215,1740477054131,-151.0,0.00273973,120]
[354412216,1740477054141,-151.0,0.00273973,120]
[354412217,1740477054151,-151.0,0.00273973,120]
[354412218,1740477054160,-198.58970785,0.00273973,120]
[354412219,1740477054170,-307.5475,0.00273973,120]
[354412220,1740477054179,-307.5475,0.00273973,120]
[354412221,1740477054189,-307.5475,0.00273973,120]
[354412222,1740477054198,-307.5475,0.00273973,120]
[354412223,1740477054208,-307.5475,0.00273973,120]
[354412224,1740477054218,-307.5475,0.00273973,120]
[354412225,1740477054227,-307.5475,0.00273973,120]
[354412226,1740477054236,-307.5475,0.00273973,120]
[354412227,1740477054246,-307.5475,0.00273973,120]
[354412228,1740477054255,-307.5475,0.00273973,120]
[354412229,1740477054264,-307.5475,0.00273973,120]
[354412230,1740477054274,-307.5475,0.00273973,120]
[354412231,1740477054283,-307.5475,0.00273973,120]
[354412232,1740477054295,-307.5475,0.00273973,120]
[354412233,1740477054304,-307.5475,0.00273973,120]
[354412234,1740477054314,-307.5475,0.00273973,120]
[354412235,1740477054324,-307.5475,0.00273973,120]
[354412236,1740477054334,-307.5475,0.00273973,120]
[354412237,1740477054344,-307.5475,0.00273973,120]
[354412238,1740477054354,-307.5475,0.00273973,120]
[354412239,1740477054364,-151.0,0.00273973,120]
[354412240,1740477054373,-151.0,0.00273973,120]
[354412241,1740477054383,-151.0,0.00273973,120]
[354412242,1740477054392,-151.0,0.00273973,120]
[354412243,1740477054402,-151.0,0.00273973,120]
[354412244,1740477054412,-151.0,0.00273973,120]
[354412245,1740477054422,-151.0,0.00273973,120]
[354412246,1740477054432,-220.157787,0.00273973,120]
[354412247,1740477054441,-10000.0,0.00295628,120]
[354412248,1740477054451,-3109.00015116,0.00305003,91]
[354412249,1740477054461,-706.09,0.00306,120]
[354412250,1740477054470,-1207.2,0.003065,110]
[354412251,1740477054480,-10000.0,0.00326397,120]
[354412252,1740477054489,-4437.0,0.00334,120]
[354412253,1740477054499,-3701.0,0.00334,120]
[354412254,1740477054509,-5830.0,0.00334,120]
[354412255,1740477054519,-500.0,0.0035,120]
[354412256,1740477054528,-2000.0,0.0035,120]
[354412257,1740477054537,-5000.0,0.0035,120]
[354412258,1740477054549,-10000.0,0.00360369,120]
[354412259,1740477054559,-1000.0,0.003699,120]
[354412260,1740477054568,-2000.0,0.0039,120]
[354412261,1740477054578,-732.28397462,0.00397132,120]
[354412262,1740477054587,-10000.0,0.00397876,120]
[354412263,1740477054597,-50000.0,0.004,40]
[354412264,1740477054607,-1365.921,0.004,113]
[354412265,1740477054617,-50000.0,0.004,120]
[354412266,1740477054627,-1439.11,0.00416506,95]
[354412267,1740477054636,-10000.0,0.00439288,120]
[354412268,1740477054646,-1029.14,0.0044,60]
[354412269,1740477054655,-1138.4782192,0.00443061,120]
[354412270,1740477054664,-804.92,0.00444,120]
[354412271,1740477054674,-500.0,0.0045,120]
[354412272,1740477054684,-50000.0,0.0045,120]
[354412273,1740477054694,-2000.0,0.0048,120]
[354412274,1740477054703,-10000.0,0.00485009,120]
[354412275,1740477054714,-5000.0,0.0049,120]
[354412276,1740477054723,-50000.0,0.005,51]
[354412277,1740477054733,-10000.0,0.005,90]
[354412278,1740477054743,-500.0,0.005,120]
[354412279,1740477054753,-20000.0,0.005,120]
[354412280,1740477054763,-1138.4782192,0.00505291,120]
[354412281,1740477054772,-659.94,0.00515,60]
[354412282,1740477054782,-500.0,0.0053,120]
[354412283,1740477054791,-10000.0,0.00535489,120]
[354412284,1740477054805,-3109.00015116,0.00544107,120]
[354412285,1740477054814,-500.0,0.00547945,30]
[354412286,1740477054824,-500.0,0.00547945,30]
[354412287,1740477054837,-500.0,0.00547945,30]
[354412288,1740477054847,-249.99,0.00547945,30]
[354412289,1740477054859,-1000.0,0.00547945,120]
[354412290,1740477054869,-500.0,0.00547945,120]
[354412291,1740477054880,-500.0,0.00547945,120]
[354412292,1740477054890,-449.08,0.00547945,120]
[354412293,1740477054900,-264.82747985,0.00549215,120]
[354412294,1740477054910,-500.0,0.0055,120]
[354412295,1740477054920,-19016.90975527,0.0055,120]
[354412296,1740477054929,-35383.09,0.0055,120]
[354412297,1740477054939,-1000.0,0.0055,120]
[354412298,1740477054948,-2000.0,0.00564,120]
[354412299,1740477054958,-2000.0,0.0057,120]
[354412300,1740477054967,-1138.4782192,0.00576262,120]
[354412301,1740477054977,-500.0,0.0058,120]
[354412302,1740477054987,-2000.0,0.0058,120]
[354412303,1740477054996,-1898.233788,0.005803,77]
[354412304,1740477055005,-10000.0,0.00591224,120]
[354412305,1740477055014,-1029.14,0.00592,60]
[354412306,1740477055023,-50000.0,0.005989,120]
[354412307,1740477055033,-600.0,0.0059898,120]
[354412308,1740477055045,-231768.0424985,0.005999,120]
[354412309,1740477055054,-50000.0,0.006,62]
[354412310,1740477055064,-5000.0,0.006,90]
[354412311,1740477055074,-10000.0,0.006,120]
[354412312,1740477055083,-500.0,0.006,120]
[354412313,1740477055093,-636.0,0.0060274,120]
[354412314,1740477055103,-636.0,0.0060274,120]
[354412315,1740477055112,-636.0,0.0060274,120]
[354412316,1740477055122,-636.0,0.0060274,120]
[354412317,1740477055131,-636.0,0.0060274,120]
[354412318,1740477055141,-636.0,0.0060274,120]
[354412319,1740477055150,-636.0,0.0060274,120]
[354412320,1740477055160,-636.0,0.0060274,120]
[354412321,1740477055170,-636.0,0.0060274,120]
[354412322,1740477055179,-636.0,0.0060274,120]
[354412323,1740477055189,-636.0,0.0060274,120]
[354412324,1740477055199,-636.0,0.0060274,120]
[354412325,1740477055209,-636.0,0.0060274,120]
[354412326,1740477055218,-636.0,0.0060274,120]
[354412327,1740477055228,-636.0,0.0060274,120]
[354412328,1740477055238,-636.0,0.0060274,120]
[354412329,1740477055248,-636.0,0.0060274,120]
[354412330,1740477055257,-636.0,0.0060274,120]
[354412331,1740477055267,-636.0,0.0060274,120]
[354412332,1740477055277,-636.0,0.0060274,120]
[354412333,1740477055286,-636.0,0.0060274,120]
[354412334,1740477055298,-636.0,0.0060274,120]
[354412335,1740477055308,-636.0,0.0060274,120]
[354412336,1740477055319,-636.0,0.0060274,120]
[354412337,1740477055328,-636.0,0.0060274,120]
[354412338,1740477055339,-636.0,0.0060274,120]
[354412339,1740477055348,-636.0,0.0060274,120]
[354412340,1740477055358,-636.0,0.0060274,120]
[354412341,1740477055367,-636.0,0.0060274,120]
[354412342,1740477055376,-636.0,0.0060274,120]
[354412343,1740477055386,-636.0,0.0060274,120]
[354412344,1740477055396,-636.0,0.0060274,120]
[354412345,1740477055406,-636.0,0.0060274,120]
[354412346,1740477055416,-636.0,0.0060274,120]
[354412347,1740477055425,-636.0,0.0060274,120]
[354412348,1740477055434,-636.0,0.0060274,120]
[354412349,1740477055444,-636.0,0.0060274,120]
[354412350,1740477055530,-636.0,0.0060274,120]
[354412351,1740477055540,-636.0,0.0060274,120]
[354412352,1740477055551,-636.0,0.0060274,120]
[354412353,1740477055560,-636.0,0.0060274,120]
[354412354,1740477055570,-636.0,0.0060274,120]
[354412355,1740477055579,-636.0,0.0060274,120]
[354412356,1740477055589,-636.0,0.0060274,120]
[354412357,1740477055599,-636.0,0.0060274,120]
[354412358,1740477055609,-636.0,0.0060274,120]
[354412359,1740477055618,-636.0,0.0060274,120]
[354412360,1740477055628,-636.0,0.0060274,120]
[354412361,1740477055637,-636.0,0.0060274,120]
[354412362,1740477055647,-636.0,0.0060274,120]
[354412363,1740477055656,-636.0,0.0060274,120]
[354412364,1740477055666,-636.0,0.0060274,120]
[354412365,1740477055676,-636.0,0.0060274,120]
[354412366,1740477055685,-636.0,0.0060274,120]
[354412367,1740477055695,-636.0,0.0060274,120]
[354412368,1740477055704,-636.0,0.0060274,120]
[354412369,1740477055714,-636.0,0.0060274,120]
[354412370,1740477055723,-636.0,0.0060274,120]
[354412371,1740477055733,-636.0,0.0060274,120]
[354412372,1740477055743,-636.0,0.0060274,120]
[354412373,1740477055753,-636.0,0.0060274,120]
[354412374,1740477055762,-636.0,0.0060274,120]
[354412375,1740477055772,-636.0,0.0060274,120]
[354412376,1740477055781,-636.0,0.0060274,120]
[354412377,1740477055790,-636.0,0.0060274,120]
[354412378,1740477055802,-636.0,0.0060274,120]
[354412379,1740477055811,-636.0,0.0060274,120]
[354412380,1740477055822,-636.0,0.0060274,120]
[354412381,1740477055832,-636.0,0.0060274,120]
[354412382,1740477055842,-636.0,0.0060274,120]
[354412383,1740477055851,-636.0,0.0060274,120]
[354412384,1740477055861,-636.0,0.0060274,120]
[354412385,1740477055871,-636.0,0.0060274,120]
[354412386,1740477055880,-636.0,0.0060274,120]
[354412387,1740477055890,-636.0,0.0060274,120]
[354412388,1740477055900,-636.0,0.0060274,120]
[354412389,1740477055911,-636.0,0.0060274,120]
[354412390,1740477055920,-636.0,0.0060274,120]
[354412391,1740477055930,-636.0,0.0060274,120]
[354412392,1740477055939,-636.0,0.0060274,120]
[354412393,1740477055949,-636.0,0.0060274,120]
[354412394,1740477055958,-636.0,0.0060274,120]
[354412395,1740477055968,-636.0,0.0060274,120]
[354412396,1740477055978,-636.0,0.0060274,120]
[354412397,1740477055988,-636.0,0.0060274,120]
[354412398,1740477055997,-636.0,0.0060274,120]
[354412399,1740477056006,-636.0,0.0060274,120]
[354412400,1740477056016,-636.0,0.0060274,120]
[354412401,1740477056026,-636.0,0.0060274,120]
[354412402,1740477056035,-636.0,0.0060274,120]
[354412403,1740477056047,-636.0,0.0060274,120]
[354412404,1740477056056,-636.0,0.0060274,120]
[354412405,1740477056065,-636.0,0.0060274,120]
[354412406,1740477056075,-636.0,0.0060274,120]
[354412407,1740477056084,-636.0,0.0060274,120]
[354412408,1740477056092,-636.0,0.0060274,120]
[354412409,1740477056102,-636.0,0.0060274,120]
[354412410,1740477056111,-175.0,0.0060274,120]
[354412411,1740477056120,-175.0,0.0060274,120]
[354412412,1740477056129,-175.0,0.0060274,120]
[354412413,1740477056138,-175.0,0.0060274,120]
[354412414,1740477056147,-175.0,0.0060274,120]
[354412415,1740477056156,-175.0,0.0060274,120]
[354412416,1740477056166,-175.0,0.0060274,120]
[354412417,1740477056175,-175.0,0.0060274,120]
[354412418,1740477056184,-175.0,0.0060274,120]
[354412419,1740477056193,-175.0,0.0060274,120]
[354412420,1740477056202,-175.0,0.0060274,120]
[354412421,1740477056211,-175.0,0.0060274,120]
[354412422,1740477056221,-175.0,0.0060274,120]
[354412423,1740477056231,-175.0,0.0060274,120]
[354412424,1740477056240,-175.0,0.0060274,120]
[354412425,1740477056249,-175.0,0.0060274,120]
[354412426,1740477056259,-175.0,0.0060274,120]
[354412427,1740477056268,-175.0,0.0060274,120]
[354412428,1740477056277,-175.0,0.0060274,120]
[354412429,1740477056286,-175.0,0.0060274,120]
[354412430,1740477056298,-175.0,0.0060274,120]
[354412431,1740477056307,-175.0,0.0060274,120]
[354412432,1740477056317,-175.0,0.0060274,120]
[354412433,1740477056326,-175.0,0.0060274,120]
[354412434,1740477056335,-175.0,0.0060274,120]
[354412435,1740477056344,-175.0,0.0060274,120]
[354412436,1740477056354,-175.0,0.0060274,120]
[354412437,1740477056363,-175.0,0.0060274,120]
[354412438,1740477056372,-175.0,0.0060274,120]
[354412439,1740477056383,-175.0,0.0060274,120]
[354412440,1740477056392,-175.0,0.0060274,120]
[354412441,1740477056402,-175.0,0.0060274,120]
[354412442,1740477056411,-175.0,0.0060274,120]
[354412443,1740477056421,-175.0,0.0060274,120]
[354412444,1740477056431,-175.0,0.0060274,120]
[354412445,1740477056440,-175.0,0.0060274,120]
[354412446,1740477056450,-175.0,0.0060274,120]
[354412447,1740477056460,-175.0,0.0060274,120]
[354412448,1740477056470,-175.0,0.0060274,120]
[354412449,1740477056479,-175.0,0.0060274,120]
[354412450,1740477056489,-175.0,0.0060274,120]
[354412451,1740477056499,-175.0,0.0060274,120]
[354412452,1740477056508,-175.0,0.0060274,120]
[354412453,1740477056518,-175.0,0.0060274,120]
[354412454,1740477056527,-175.0,0.0060274,120]
[354412455,1740477056537,-175.0,0.0060274,120]
[354412456,1740477056547,-175.0,0.0060274,120]
[354412457,1740477056556,-175.0,0.0060274,120]
[354412458,1740477056566,-175.0,0.0060274,120]
[354412459,1740477056575,-175.0,0.0060274,120]
[354412460,1740477056584,-175.0,0.0060274,120]
[354412461,1740477056593,-175.0,0.0060274,120]
[354412462,1740477056603,-175.0,0.0060274,120]
[354412463,1740477056612,-175.0,0.0060274,120]
[354412464,1740477056622,-175.0,0.0060274,120]
[354412465,1740477056631,-175.0,0.0060274,120]
[354412466,1740477056640,-175.0,0.0060274,120]
[354412467,1740477056650,-175.0,0.0060274,120]
[354412468,1740477056660,-175.0,0.0060274,120]
[354412469,1740477056669,-175.0,0.0060274,120]
[354412470,1740477056679,-175.0,0.0060274,120]
[354412471,1740477056689,-175.0,0.0060274,120]
[354412472,1740477056698,-175.0,0.0060274,120]
[354412473,1740477056707,-175.0,0.0060274,120]
[354412474,1740477056717,-175.0,0.0060274,120]
[354412475,1740477056726,-175.0,0.0060274,120]
[354412476,1740477056736,-175.0,0.0060274,120]
[354412477,1740477056745,-175.0,0.0060274,120]
[354412478,1740477056755,-175.0,0.0060274,120]
[354412479,1740477056765,-175.0,0.0060274,120]
[354412480,1740477056775,-175.0,0.0060274,120]
[354412481,1740477056784,-175.0,0.0060274,120]
[354412482,1740477056794,-175.0,0.0060274,120]
[354412483,1740477056803,-175.0,0.0060274,120]
[354412484,1740477056813,-175.0,0.0060274,120]
[354412485,1740477056823,-175.0,0.0060274,120]
[354412486,1740477056836,-175.0,0.0060274,120]
[354412487,1740477056845,-175.0,0.0060274,120]
[354412488,1740477056855,-175.0,0.0060274,120]
[354412489,1740477056865,-175.0,0.0060274,120]
[354412490,1740477056875,-175.0,0.0060274,120]
[354412491,1740477056884,-175.0,0.0060274,120]
[354412492,1740477056893,-175.0,0.0060274,120]
[354412493,1740477056904,-175.0,0.0060274,120]
[354412494,1740477056914,-175.0,0.0060274,120]
[354412495,1740477056924,-175.0,0.0060274,120]
[354412496,1740477056933,-175.0,0.0060274,120]
[354412497,1740477056943,-175.0,0.0060274,120]
[354412498,1740477057021,-175.0,0.0060274,120]
[354412499,1740477057031,-175.0,0.0060274,120]
[354412500,1740477057040,-175.0,0.0060274,120]
[354412501,1740477057051,-175.0,0.0060274,120]
[354412502,1740477057061,-175.0,0.0060274,120]
[354412503,1740477057070,-175.0,0.0060274,120]
[354412504,1740477057079,-175.0,0.0060274,120]
[354412505,1740477057089,-175.0,0.0060274,120]
[354412506,1740477057098,-706.09,0.00607,120]
[354412507,1740477057107,-4437.0,0.00628,120]
[354412508,1740477057116,-3701.0,0.00628,120]
[354412509,1740477057125,-5830.0,0.00628,120]
[354412510,1740477057135,-500.0,0.00631763,120]
[354412511,1740477057145,-151.0,0.006371,113]
[354412512,1740477057155,-500.0,0.0065,120]
[354412513,1740477057165,-10000.0,0.00652759,120]
[354412514,1740477057174,-2210.36,0.00657534,120]
[354412515,1740477057184,-2210.36,0.00657534,120]
[354412516,1740477057194,-2210.36,0.00657534,120]
[354412517,1740477057203,-2210.36,0.00657534,120]
[354412518,1740477057212,-2210.36,0.00657534,120]
[354412519,1740477057222,-2210.36,0.00657534,120]
[354412520,1740477057231,-2210.36,0.00657534,120]
[354412521,1740477057242,-2210.36,0.00657534,120]
[354412522,1740477057252,-2210.36,0.00657534,120]
[354412523,1740477057262,-2210.36,0.00657534,120]
[354412524,1740477057271,-2210.36,0.00657534,120]
[354412525,1740477057282,-2210.36,0.00657534,120]
[354412526,1740477057294,-2210.36,0.00657534,120]
[354412527,1740477057303,-2210.36,0.00657534,120]
[354412528,1740477057312,-2210.36,0.00657534,120]
[354412529,1740477057321,-2210.36,0.00657534,120]
[354412530,1740477057331,-2210.36,0.00657534,120]
[354412531,1740477057341,-2210.36,0.00657534,120]
[354412532,1740477057350,-2210.36,0.00657534,120]
[354412533,1740477057360,-2210.36,0.00657534,120]
[354412534,1740477057370,-2210.36,0.00657534,120]
[354412535,1740477057380,-2210.36,0.00657534,120]
[354412536,1740477057389,-2210.36,0.00657534,120]
[354412537,1740477057399,-2210.56781249,0.00657534,120]
[354412538,1740477057408,-480.0,0.00659161,120]
[354412539,1740477057418,-500.0,0.0066,120]
[354412540,1740477057427,-500.0,0.0066,120]
[354412541,1740477057437,-500.0,0.0066,120]
[354412542,1740477057446,-491.0367585,0.0066,120]
[354412543,1740477057456,-500.0,0.0067,120]
[354412544,1740477057465,-500.0,0.0067,120]
[354412545,1740477057474,-500.0,0.0067,120]
[354412546,1740477057484,-804.92,0.0067,120]
[354412547,1740477057493,-500.0,0.0068,120]
[354412548,1740477057502,-500.0,0.0068,120]
[354412549,1740477057512,-500.0,0.0068,120]
[354412550,1740477057521,-9050.0,0.0068,120]
[354412551,1740477057530,-9412.23268827,0.00688,120]
[354412552,1740477057539,-17459.0,0.0069,120]
[354412553,1740477057550,-32986.30988101,0.0069,120]
[354412554,1740477057560,-512.29333098,0.00690491,120]
[354412555,1740477057570,-2000.0,0.00695,120]
[354412556,1740477057579,-600.0,0.0069797,120]
[354412557,1740477057589,-500.0,0.0069863,120]
[354412558,1740477057600,-500.0,0.0069863,120]
[354412559,1740477057609,-500.0,0.0069863,120]
[354412560,1740477057619,-501.51287101,0.0069863,120]
[354412561,1740477057628,-223524.0131744,0.006988,120]
[354412562,1740477057637,-50000.0,0.007,71]
[354412563,1740477057646,-5000.0,0.007,90]
[354412564,1740477057656,-209164.31040169,0.007,120]
[354412565,1740477057665,-2767.342668,0.007,120]
[354412566,1740477057675,-500.0,0.007,120]
[354412567,1740477057683,-500.0,0.007,120]
[354412568,1740477057692,-500.0,0.007,120]
[354412569,1740477057702,-35383.09,0.007,120]
[354412570,1740477057711,-500.0,0.0072,120]
[354412571,1740477057721,-500.0,0.0072,120]
[354412572,1740477057730,-500.0,0.0072,120]
[354412573,1740477057740,-627.0,0.0072,120]
[354412574,1740477057750,-627.0,0.0072,120]
[354412575,1740477057759,-627.0,0.0072,120]
[354412576,1740477057768,-627.0,0.0072,120]
[354412577,1740477057778,-627.0,0.0072,120]
[354412578,1740477057787,-627.0,0.0072,120]
[354412579,1740477057798,-627.0,0.0072,120]
[354412580,1740477057807,-627.0,0.0072,120]
[354412581,1740477057817,-627.0,0.0072,120]
[354412582,1740477057831,-627.0,0.0072,120]
[354412583,1740477057840,-627.0,0.0072,120]
[354412584,1740477057849,-627.0,0.0072,120]
[354412585,1740477057858,-627.0,0.0072,120]
[354412586,1740477057868,-627.0,0.0072,120]
[354412587,1740477057878,-627.0,0.0072,120]
[354412588,1740477057887,-627.0,0.0072,120]
[354412589,1740477057896,-627.0,0.0072,120]
[354412590,1740477057906,-627.0,0.0072,120]
[354412591,1740477057915,-627.0,0.0072,120]
[354412592,1740477057924,-627.0,0.0072,120]
[354412593,1740477057934,-627.0,0.0072,120]
[354412594,1740477057943,-627.0,0.0072,120]
[354412595,1740477057953,-627.0,0.0072,120]
[354412596,1740477057962,-627.0,0.0072,120]
[354412597,1740477057971,-627.0,0.0072,120]
[354412598,1740477057981,-627.0,0.0072,120]
[354412599,1740477057991,-627.0,0.0072,120]
[354412600,1740477058000,-627.0,0.0072,120]
[354412601,1740477058010,-627.0,0.0072,120]
[354412602,1740477058019,-627.0,0.0072,120]
[354412603,1740477058028,-627.0,0.0072,120]
[354412604,1740477058038,-627.0,0.0072,120]
[354412605,1740477058049,-627.0,0.0072,120]
[354412606,1740477058059,-627.0,0.0072,120]
[354412607,1740477058069,-627.0,0.0072,120]
[354412608,1740477058079,-627.0,0.0072,120]
[354412609,1740477058088,-627.0,0.0072,120]
[354412610,1740477058098,-627.0,0.0072,120]
[354412611,1740477058108,-627.0,0.0072,120]
[354412612,1740477058117,-627.0,0.0072,120]
[354412613,1740477058126,-10000.0,0.00720698,120]
[354412614,1740477058135,-256.76668787,0.00729004,120]
[354412615,1740477058145,-68531.78215073,0.00737,120]
[354412616,1740477058154,-65999.0,0.007388,120]
[354412617,1740477058163,-1318.4369745,0.0074747,120]
[354412618,1740477058172,-9932.3,0.007478,120]
[354412619,1740477058182,-500.0,0.0075,120]
[354412620,1740477058191,-500.0,0.0075,120]
[354412621,1740477058244,-888.86,0.00773179,120]
[354412622,1740477058568,358.70920219,0.0004,30]
[354412623,1740477058590,5072.67124036,0.0004,30]
[354412624,1740477058614,4868.61955745,0.0004,30]
[354412625,1740477069877,156.93,0.000266,31]
[354412626,1740477149337,-500.0,0.00054795,120]
[354412627,1740477151218,215.64979815,0.00055,120]
[354412628,1740477154565,-500.0,0.00055069,120]
[354412629,1740477154590,-500.0,0.00055343,120]
[354412630,1740477154615,-500.0,0.00055617,120]
[354412631,1740477154712,-500.0,0.00055891,120]
[354412632,1740477154737,-570.4975262,0.00056165,120]
[354412633,1740477160254,300.81232348,0.00055,78]
[354412634,1740477164014,-500.0,0.00065753,3]
[354412635,1740477164040,-505.42741197,0.00065753,120]
[354412636,1740477164066,-500.0,0.00065753,30]
[354412637,1740477164091,-500.0,0.00065753,120]
[354412638,1740477164115,-500.0,0.00065753,120]
[354412639,1740477164240,-500.0,0.00065753,120]
[354412640,1740477164266,-504.48922415,0.00065753,120]
[354412641,1740477164292,-504.37604494,0.00065753,120]
[354412642,1740477164319,-295.72474633,0.00065753,120]
[354412643,1740477164343,-500.0,0.00065753,120]
[354412644,1740477164368,-500.0,0.00065753,120]
[354412645,1740477164395,-500.0,0.00065753,120]
[354412646,1740477164420,-500.0,0.00065753,120]
[354412647,1740477164445,-500.0,0.00065753,120]
[354412648,1740477164470,-500.0,0.00065753,120]
[354412649,1740477164496,-504.12294736,0.00065753,120]
[354412650,1740477164521,-500.0,0.00065753,120]
[354412651,1740477164547,-500.0,0.00065753,120]
[354412652,1740477164571,-500.0,0.00065753,120]
[354412653,1740477164599,-500.0,0.00065753,120]
[354412654,1740477164626,-500.0,0.00066301,3]
[354412655,1740477164653,-500.0,0.00066301,120]
[354412656,1740477164678,-500.0,0.00066301,120]
[354412657,1740477164703,-500.0,0.00066301,120]
[354412658,1740477164728,-500.0,0.00066301,120]
[354412659,1740477164752,-500.0,0.00066301,120]
[354412660,1740477164776,-635.03976938,0.00066665,120]
[354412661,1740477164802,-500.0,0.00066665,120]
[354412662,1740477164826,-500.0,0.00066665,120]
[354412663,1740477164854,-250.0,0.00066665,120]
[354412664,1740477164881,-500.0,0.00066665,120]
[354412665,1740477164907,-503.02498034,0.00066665,120]
[354412666,1740477164932,-553.91000002,0.00066665,120]
[354412667,1740477164957,-500.0,0.00066665,120]
[354412668,1740477164981,-500.0,0.00066665,120]
[354412669,1740477165005,-502.8753739,0.00066665,120]
[354412670,1740477165030,-503.13017325,0.00066665,120]
[354412671,1740477165054,-500.0,0.00066665,120]
[354412672,1740477165079,-500.0,0.00066665,120]
[354412673,1740477165102,-316.26211098,0.00066665,120]
[354412674,1740477165126,-500.0,0.00066665,120]
[354412675,1740477165150,-372.41462889,0.00066665,120]
[354412676,1740477165175,-503.13410827,0.00066665,120]
[354412677,1740477165202,-500.0,0.00066849,3]
[354412678,1740477165230,-448.56,0.00066849,120]
[354412679,1740477165258,-500.0,0.00066849,120]
[354412680,1740477165287,-500.0,0.00066849,120]
[354412681,1740477165314,-500.0,0.00066849,120]
[354412682,1740477165406,-500.0,0.00066849,120]
[354412683,1740477165431,-559.7767988,0.00066873,12]
[354412684,1740477165455,-250.0,0.00067213,120]
[354412685,1740477165480,-287.73168142,0.00067213,120]
[354412686,1740477167876,-212.26831858,0.00067213,120]
[354412687,1740477167915,-500.0,0.00067397,3]
[354412688,1740477167963,-500.0,0.00067397,120]
[354412689,1740477168000,-500.0,0.00067397,120]
[354412690,1740477168042,-500.0,0.00067397,120]
[354412691,1740477168079,-412.77126005,0.00067397,120]
[354412692,1740477168115,-500.0,0.00067761,120]
[354412693,1740477168152,-500.0,0.00067945,3]
[354412694,1740477168177,-461.38,0.00067945,120]
[354412695,1740477168202,-500.0,0.00067945,120]
[354412696,1740477168227,-500.0,0.00067945,120]
[354412697,1740477168251,-500.0,0.00068309,120]
[354412698,1740477168276,-500.0,0.00068473,7]
[354412699,1740477168303,-500.0,0.00068493,3]
[354412700,1740477168332,-500.0,0.00068493,120]
[354412701,1740477168358,-500.0,0.00068493,120]
[354412702,1740477168384,-321.97,0.000685,60]
[354412703,1740477168412,-587.13785029,0.00068857,120]